fUST/lending_fUST_20260221
["ID","MTS","AMOUNT","RATE_DAILY","PERIOD"]
[406243512,1771656645810,-4477.30676937,0.00021582,2]
[406243514,1771656645820,-834.1800825,0.00021674,2]
[406243516,1771656645829,-401.2572789,0.00022106,2]
[406243518,1771656645838,-168.0,0.00022383,2]
[406243520,1771656645847,-600.0,0.00022466,2]
[406243522,1771656645857,-500.0,0.00022474,2]
[406243534,1771656645964,-500.0,0.00022751,2]
[406243536,1771656645973,-168.0,0.00022809,2]
[406243538,1771656645982,-500.0,0.00022862,2]
[406243540,1771656645992,-500.0,0.000229,2]
[406243542,1771656646001,-600.0,0.00022902,2]
[406243544,1771656646011,-600.0,0.00022989,2]
[406243546,1771656646019,-500.0,0.0002318,2]
[406243548,1771656646028,-600.0,0.00023191,2]
[406243550,1771656646037,-4823.49131092,0.00023228,2]
[406243552,1771656646047,-500.0,0.00023355,2]
[406243554,1771656646055,-168.0,0.00023461,2]
[406243556,1771656646064,-168.0,0.00023544,2]
[406243558,1771656646073,-834.1800825,0.00023557,2]
[406243560,1771656646082,-720.0,0.00023561,10]
[406243562,1771656646091,-500.0,0.00023661,2]
[406243564,1771656646103,-500.0,0.00023721,2]
[406243566,1771656646113,-500.0,0.00023839,2]
[406243568,1771656646122,-168.0,0.00023849,2]
[406243570,1771656646131,-402.0,0.00023859,3]
[406243572,1771656646140,-168.0,0.00023865,2]
[406243574,1771656646149,-158.0,0.000239,10]
[406243576,1771656646158,-168.0,0.00023952,2]
[406243578,1771656646167,-168.0,0.00024,2]
[406243580,1771656646177,-168.0,0.00024045,2]
[406243582,1771656646186,-500.0,0.0002406,2]
[406243584,1771656646196,-905.86074653,0.00024131,2]
[406243586,1771656646205,-168.0,0.000242,2]
[406243588,1771656646214,-401.2572789,0.00024205,2]
[406243590,1771656646223,-168.0,0.00024212,2]
[406243592,1771656646232,-168.0,0.00024216,2]
[406243594,1771656646242,-2000.0,0.00024304,2]
[406243596,1771656646251,-160.0,0.00024326,5]
[406243598,1771656646259,-653.0,0.0002439,10]
[406243600,1771656646268,-312.5,0.000244,7]
[406243602,1771656646278,-500.0,0.00024421,2]
[406243603,1771656646287,-600.0,0.00024422,2]
[406243605,1771656646296,-168.0,0.00024448,2]
[406243607,1771656646305,-168.0,0.00024463,2]
[406243609,1771656646315,-500.0,0.00024522,2]
[406243611,1771656646324,-600.0,0.00024555,2]
[406243614,1771656646334,-600.0,0.00024584,2]
[406243615,1771656646343,-600.0,0.00024597,2]
[406243618,1771656646352,-537.06,0.00024641,3]
[406243620,1771656646363,-537.1,0.00024641,3]
[406243622,1771656646372,-3096.63,0.00024641,10]
[406243624,1771656646382,-2580.53,0.00024641,10]
[406243626,1771656646391,-1200.54326102,0.00024641,10]
[406243628,1771656646404,-949.89673898,0.00024641,10]
[406243630,1771656646414,-10393.95376985,0.00024651,2]
[406243760,1771657300086,-177.10100623,0.000156,2]
[406243761,1771657300111,-645.0,0.000156,2]
[406243762,1771657316867,-161.07427529,0.00016814,2]
[406243763,1771657316899,-285.93,0.00018497,2]
[406243764,1771657333638,-150.0,0.000203,10]
[406243765,1771657350628,-465.7033787,0.00020642,2]
[406243766,1771657350654,-150.0,0.00021,2]
[406243767,1771657350679,-500.0,0.00022068,2]
[406243768,1771657350704,-158.325,0.00022068,2]
[406243769,1771657350730,-500.0,0.00022425,2]
[406243770,1771657350755,-503.26425868,0.00022425,2]
[406243771,1771657350781,-500.0,0.00022425,2]
[406243772,1771657350806,-500.0,0.00022425,2]
[406243773,1771657350832,-284.34709771,0.00022425,2]
[406243774,1771657379860,-500.0,0.00022219,2]
[406243775,1771657379887,-500.0,0.00022227,2]
[406243776,1771657379912,-154.50332591,0.00022324,2]
[406243777,1771657379983,-796.45885463,0.00022416,10]
[406243778,1771657409054,-1154.50332591,0.00022416,10]
[406243809,1771657831691,-217.99963764,0.000156,2]
[406243810,1771657831700,-297.69774396,0.000156,2]
[406243811,1771657831711,-194.63517832,0.000156,2]
[406243812,1771657831722,-450.36482168,0.000156,2]
[406243813,1771657831734,-549.63517832,0.00015795,2]
[406243814,1771657831749,-380.57647408,0.00015795,2]
[406243815,1771657831760,-693.06526405,0.00015795,2]
[406243854,1771657837941,-412.1984135,0.00015795,2]
[406243856,1771657837951,-3920.95066001,0.0001712,2]
[406243858,1771657837964,-297.69774396,0.00018054,17]
[406243860,1771657837974,-4002.92784817,0.00018445,2]
[406243862,1771657837983,-4248.85941295,0.00019769,2]
[406243864,1771657837993,-297.69774396,0.00020508,32]
[406243867,1771657838003,-4576.76816599,0.00021094,2]
[406243869,1771657838012,-512.1810171,0.00021841,2]
[406243871,1771657838021,-1771.95593008,0.00022321,2]
[406243873,1771657838031,-511.15213292,0.000224,30]
[406243875,1771657838040,-280.58834369,0.00022408,2]
[406243876,1771657838050,-1497.96,0.00022416,10]
[406243879,1771657838059,-1248.3,0.00022416,10]
[406243881,1771657838069,-1040.25,0.00022416,10]
[406243883,1771657838078,-4904.67691902,0.00022419,2]
[406243885,1771657838087,-500.0,0.00022421,2]
[406243887,1771657838096,-500.0,0.00022421,2]
[406243889,1771657838106,-500.0,0.00022421,2]
[406243890,1771657838115,-500.0,0.00022421,2]
[406243893,1771657838124,-500.0,0.00022421,2]
[406243895,1771657838134,-500.0,0.00022421,2]
[406243896,1771657838143,-500.0,0.00022421,2]
[406243899,1771657838152,-500.0,0.00022421,2]
[406243901,1771657838162,-500.0,0.00022421,2]
[406243903,1771657838171,-500.0,0.00022421,2]
[406243905,1771657838181,-500.0,0.00022421,2]
[406243906,1771657838190,-500.0,0.00022421,2]
[406243909,1771657838200,-500.0,0.00022421,2]
[406243911,1771657838209,-500.0,0.00022421,2]
[406243913,1771657838218,-500.0,0.00022421,2]
[406243914,1771657838228,-500.0,0.00022421,2]
[406243916,1771657838237,-500.0,0.00022421,2]
[406243918,1771657838246,-500.0,0.00022421,2]
[406243920,1771657838255,-500.0,0.00022421,2]
[406243922,1771657838264,-500.0,0.00022421,2]
[406243924,1771657838274,-500.0,0.00022421,2]
[406243926,1771657838283,-557.67392194,0.00022421,2]
[406243928,1771657838292,-500.0,0.00022421,2]
[406243931,1771657838302,-500.0,0.00022421,2]
[406243933,1771657838312,-500.0,0.00022421,2]
[406243935,1771657838322,-500.0,0.00022421,2]
[406243937,1771657838331,-500.0,0.00022421,2]
[406243938,1771657838343,-500.0,0.00022421,2]
[406243941,1771657838353,-500.0,0.00022421,2]
[406243943,1771657838362,-500.0,0.00022421,2]
[406243945,1771657838372,-500.0,0.00022421,2]
[406243947,1771657838383,-500.0,0.00022421,2]
[406243949,1771657838392,-500.0,0.00022421,2]
[406243951,1771657838402,-500.0,0.00022421,2]
[406243953,1771657838412,-579.24034611,0.00022421,2]
[406243955,1771657838421,-500.0,0.00022421,2]
[406243957,1771657838430,-500.0,0.00022421,2]
[406243959,1771657838440,-500.0,0.00022421,2]
[406243961,1771657838449,-500.0,0.00022421,2]
[406243963,1771657838458,-500.0,0.00022421,2]
[406243965,1771657838468,-500.0,0.00022421,2]
[406243967,1771657838477,-500.0,0.00022421,2]
[406243969,1771657838487,-287.0705886,0.00022421,2]
[406243971,1771657838498,-500.0,0.00022421,2]
[406243973,1771657838508,-500.0,0.00022421,2]
[406243975,1771657838518,-500.0,0.00022421,2]
[406243977,1771657838527,-599.25738941,0.00022421,2]
[406243979,1771657838537,-500.0,0.00022421,2]
[406243981,1771657838546,-500.0,0.00022421,2]
[406243983,1771657838556,-500.0,0.00022421,2]
[406243985,1771657838566,-500.0,0.00022421,2]
[406243986,1771657838576,-500.0,0.00022421,2]
[406243989,1771657838586,-500.0,0.00022421,2]
[406243991,1771657838595,-256.7943305,0.00022421,2]
[406243992,1771657838605,-500.0,0.00022421,2]
[406243995,1771657838615,-500.0,0.00022421,2]
[406243997,1771657838625,-500.0,0.00022421,2]
[406243999,1771657838634,-500.0,0.00022421,2]
[406244001,1771657838643,-500.0,0.00022421,2]
[406244003,1771657838657,-500.0,0.00022421,2]
[406244005,1771657838673,-500.0,0.00022421,2]
[406244007,1771657838683,-500.0,0.00022421,2]
[406244009,1771657838692,-500.0,0.00022421,2]
[406244011,1771657838706,-500.0,0.00022421,2]
[406244013,1771657838715,-500.0,0.00022421,2]
[406244015,1771657838725,-500.0,0.00022421,2]
[406244017,1771657838735,-500.0,0.00022421,2]
[406244019,1771657838744,-500.0,0.00022421,2]
[406244021,1771657838754,-500.0,0.00022421,2]
[406244023,1771657838764,-500.0,0.00022421,2]
[406244025,1771657838774,-500.0,0.00022421,2]
[406244027,1771657838784,-500.0,0.00022421,2]
[406244030,1771657838794,-500.0,0.00022421,2]
[406244031,1771657838804,-500.0,0.00022421,2]
[406244033,1771657838813,-500.0,0.00022421,2]
[406244035,1771657838823,-500.0,0.00022421,2]
[406244038,1771657838832,-500.0,0.00022421,2]
[406244040,1771657838842,-500.0,0.00022421,2]
[406244041,1771657838851,-500.0,0.00022421,2]
[406244044,1771657838861,-500.0,0.00022421,2]
[406244045,1771657838870,-500.0,0.00022421,2]
[406244047,1771657838879,-500.0,0.00022421,2]
[406244049,1771657838889,-500.0,0.00022421,2]
[406244052,1771657838904,-500.0,0.00022421,2]
[406244054,1771657838914,-500.0,0.00022421,2]
[406244056,1771657838923,-500.0,0.00022421,2]
[406244058,1771657838933,-500.0,0.00022421,2]
[406244060,1771657838943,-500.0,0.00022421,2]
[406244062,1771657838955,-500.0,0.00022421,2]
[406244064,1771657838964,-500.0,0.00022421,2]
[406244066,1771657838974,-500.0,0.00022421,2]
[406244068,1771657838983,-500.0,0.00022421,2]
[406244070,1771657838992,-500.0,0.00022421,2]
[406244072,1771657839001,-480.16966475,0.00022421,2]
[406244074,1771657839010,-499.99999999,0.00022421,2]
[406244076,1771657839019,-500.0,0.00022421,2]
[406244078,1771657839028,-500.0,0.00022421,2]
[406244080,1771657839037,-500.0,0.00022421,2]
[406244082,1771657839047,-500.0,0.00022421,2]
[406244084,1771657839056,-500.0,0.00022421,2]
[406244086,1771657839065,-500.0,0.00022421,2]
[406244088,1771657839075,-500.0,0.00022421,2]
[406244090,1771657839084,-500.0,0.00022421,2]
[406244092,1771657839093,-500.0,0.00022421,2]
[406244094,1771657839103,-500.0,0.00022421,2]
[406244096,1771657839111,-500.0,0.00022421,2]
[406244098,1771657839121,-500.0,0.00022421,2]
[406244100,1771657839130,-500.0,0.00022421,2]
[406244102,1771657839139,-450.0,0.00022421,2]
[406244104,1771657839148,-500.0,0.00022421,2]
[406244106,1771657839158,-500.0,0.00022421,2]
[406244108,1771657839167,-500.0,0.00022421,2]
[406244110,1771657839176,-311.14897449,0.00022421,2]
[406244112,1771657839186,-500.0,0.00022421,2]
[406244114,1771657839195,-500.0,0.00022421,2]
[406244116,1771657839204,-500.0,0.00022421,2]
[406244118,1771657839213,-614.92318602,0.00022421,2]
[406244120,1771657839223,-500.0,0.00022421,2]
[406244122,1771657839233,-500.0,0.00022421,2]
[406244124,1771657839242,-500.0,0.00022421,2]
[406244126,1771657839251,-406.24154989,0.00022425,2]
[406244128,1771657839260,-42679.2605714,0.00022426,2]
[406244130,1771657839269,-600.0,0.00022871,10]
[406244132,1771657839278,-537.77026099,0.00022946,2]
[406244134,1771657839288,-297.69774396,0.00022962,48]
[406244136,1771657839297,-369.0,0.00023,7]
[406244138,1771657839306,-177.10100623,0.0002302,56]
[406244140,1771657839315,-369.0,0.00023288,7]
[406244142,1771657839325,-210.32853275,0.0002374,7]
[406244145,1771657839334,-224.91559089,0.0002374,7]
[406244147,1771657839346,-5232.58567206,0.00023744,2]
[406244149,1771657839355,-173.45905736,0.00024158,2]
[406244151,1771657839364,-369.0,0.00024164,7]
[406244153,1771657839373,-217.99963764,0.00024189,56]
[406244155,1771657839383,-166.84810885,0.00024326,5]
[406244157,1771657839392,-500.0,0.00024648,2]
[406244159,1771657839401,-500.0,0.00024648,2]
[406244161,1771657839411,-500.0,0.00024648,2]
[406244164,1771657839422,-170.736039,0.00024649,2]
[406244166,1771657839431,-500.0,0.0002465,2]
[406244168,1771657839441,-500.0,0.0002465,2]
[406244169,1771657839450,-2000.0,0.0002465,2]
[406244171,1771657839459,-42575.50954273,0.00024651,2]
[406244174,1771657839469,-500.0,0.00024658,2]
[406244176,1771657839479,-268.599405,0.00024687,2]
[406244178,1771657839488,-197.61,0.000247,7]
[406244179,1771657839500,-312.5,0.000247,7]
[406244182,1771657839509,-619.94581503,0.00024713,2]
[406244184,1771657839518,-500.0,0.00024899,2]
[406244187,1771657839527,-743.87469872,0.00024932,2]
[406244189,1771657839536,-500.0,0.00024989,2]
[406244191,1771657839546,-376.08436085,0.00024989,2]
[406244193,1771657839555,-212.8159951,0.0002499,2]
[406244194,1771657839564,-2688.76442951,0.00025,2]
[406244196,1771657839573,-10364.0,0.00025,2]
[406244198,1771657839582,-150.0,0.00025,2]
[406244200,1771657839592,-500.0,0.00025,2]
[406244202,1771657839600,-764.06197067,0.00025,2]
[406244204,1771657839610,-303.30397286,0.00025,2]
[406244206,1771657839619,-60175.87091009,0.00025,5]
[406244208,1771657839628,-232608.14672293,0.00025,10]
[406244210,1771657839636,-16402.13066554,0.00025,30]
[406244212,1771657839646,-200.0,0.00025,17]
[406244214,1771657839655,-1097.16,0.00025,2]
[406244216,1771657839664,-1138.69,0.00025,14]
[406244218,1771657839674,-1338.98,0.00025,7]
[406244220,1771657839683,-487.0,0.00025,2]
[406244222,1771657839692,-487.0,0.00025,2]
[406244224,1771657839702,-487.0,0.00025,2]
[406244226,1771657839711,-487.0,0.00025,2]
[406244229,1771657839721,-487.0,0.00025,2]
[406244231,1771657839731,-487.0,0.00025,2]
[406244233,1771657839740,-487.0,0.00025,2]
[406244235,1771657839749,-845.44,0.00025,2]
[406244237,1771657839758,-1771.95593007,0.00025024,2]
[406244239,1771657839767,-5560.4944251,0.00025069,2]
[406244242,1771657839778,-500.0,0.000251,7]
[406244245,1771657839788,-720.0,0.00025158,10]
[406244248,1771657839797,-168.0,0.00025182,2]
[406244251,1771657839806,-168.0,0.00025214,2]
[406244254,1771657839815,-370.0,0.00025373,7]
[406244265,1771657839824,-297.69774396,0.00025416,63]
[406244268,1771657839911,-1000.0,0.000255,2]
[406244270,1771657839920,-268.599405,0.00025727,2]
[406244272,1771657839929,-500.0,0.0002597,7]
[406244274,1771657839938,-532.5842797,0.00026,2]
[406244276,1771657839947,-19900.0,0.00026,2]
[406244278,1771657839956,-2450.85448082,0.00026,10]
[406244280,1771657839965,-210.0,0.00026,20]
[406244282,1771657839974,-179.82017982,0.00026139,2]
[406244284,1771657839983,-195.64539021,0.0002616,2]
[406244286,1771657839992,-500.0,0.00026241,7]
[406244288,1771657840001,-5970.38036639,0.00026393,7]
[406244290,1771657840010,-743.87469872,0.00026393,7]
[406244292,1771657840019,-500.0,0.00026568,7]
[406244294,1771657840029,-174.4700851,0.00026663,120]
[406244296,1771657840038,-268.599405,0.00026766,2]
[406244298,1771657840047,-598.0,0.00026771,10]
[406244300,1771657840056,-150.83218661,0.00026785,120]
[406244302,1771657840065,-1097.16,0.000268,2]
[406244304,1771657840074,-312.5,0.000268,7]
[406244306,1771657840083,-500.0,0.00026909,7]
[406244308,1771657840092,-500.0,0.00026955,7]
[406244310,1771657840101,-369.0,0.00027064,7]
[406244311,1771657840111,-500.0,0.000271,7]
[406244314,1771657840120,-1138.69,0.000272,14]
[406244316,1771657840131,-500.0,0.00027257,7]
[406244318,1771657840140,-2500.0,0.000273,2]
[406244320,1771657840149,-150.3404244,0.0002738,120]
[406244322,1771657840158,-150.0,0.0002739,2]
[406244324,1771657840167,-863.61689252,0.0002739,12]
[406244325,1771657840176,-150.0,0.00027397,2]
[406244327,1771657840185,-500.0,0.00027397,2]
[406244329,1771657840194,-160.01880584,0.00027452,2]
[406244332,1771657840204,-500.0,0.00027465,7]
[406244334,1771657840213,-46199.24197801,0.000275,2]
[406244336,1771657840222,-151.0,0.000275,14]
[406244338,1771657840231,-323.584257,0.00027511,2]
[406244340,1771657840240,-151.0,0.000276,13]
[406244342,1771657840249,-864.0,0.00027674,30]
[406244344,1771657840258,-500.0,0.00027676,7]
[406244346,1771657840267,-500.0,0.00027693,7]
[406244348,1771657840278,-6134.33474291,0.00027718,12]
[406244349,1771657840287,-1338.98,0.00027724,7]
[406244351,1771657840297,-1771.95593007,0.00027727,2]
[406244354,1771657840306,-534.05357691,0.00027741,30]
[406244356,1771657840315,-38000.0,0.00027797,7]
[406244358,1771657840324,-268.599405,0.00027805,2]
[406244360,1771657840334,-38000.0,0.00027806,7]
[406244362,1771657840344,-38000.0,0.00027815,7]
[406244363,1771657840353,-743.87469872,0.00027815,7]
[406244365,1771657840363,-297.69774396,0.00027869,79]
[406244367,1771657840372,-743.87469872,0.000279,7]
[406244369,1771657840381,-2500.0,0.00028,3]
[406244371,1771657840390,-500.0,0.00028137,7]
[406244373,1771657840399,-2500.0,0.000282,3]
[406244376,1771657840412,-1097.16,0.000282,2]
[406244378,1771657840422,-500.0,0.00028308,7]
[406244379,1771657840431,-500.0,0.00028392,7]
[406244381,1771657840440,-151.0,0.000284,11]
[406244384,1771657840451,-9211.02276539,0.00028518,2]
[406244386,1771657840460,-500.0,0.00028556,7]
[406244388,1771657840472,-312.5,0.000286,7]
[406244389,1771657840481,-369.0,0.00028756,14]
[406244391,1771657840490,-301.95958998,0.0002876,2]
[406244393,1771657840501,-394.67311969,0.0002876,30]
[406244396,1771657840515,-5444.32778898,0.0002876,30]
[406244398,1771657840524,-11243.61488899,0.00028806,2]
[406244400,1771657840535,-1629.04971599,0.00028806,2]
[406244402,1771657840547,-6820.13623295,0.00028806,2]
[406244413,1771657840644,-9304.43840288,0.00028806,2]
[406244417,1771657840664,-1268.9249755,0.00028806,2]
[406244807,1771657844607,-736.13569811,0.00028806,2]
[406244940,1771657845844,-2724.12385184,0.0002465,2]
[406244942,1771657845855,-14480.88779601,0.00028806,2]
[406247230,1771659031936,-183.41492865,0.00013699,2]
[406247231,1771659031946,-867.02686608,0.00015,2]
[406247232,1771659031956,-1311.7066468,0.00017,2]
[406247233,1771659031965,-616.0,0.00023749,2]
[406247234,1771659031975,-5000.0,0.0002375,2]
[406247235,1771659031984,-5000.0,0.0002375,2]
[406247236,1771659031993,-5000.0,0.0002375,2]
[406247237,1771659032002,-956.41,0.00025,7]
[406247238,1771659032012,-882.43303936,0.000252,4]
[406247239,1771659032021,-300.0,0.00025972,2]
[406247240,1771659032031,-1599.12410991,0.00026,30]
[406247241,1771659032041,-1678.16276114,0.00026048,6]
[406247243,1771659032050,-743.87469872,0.00026239,2]
[406247245,1771659032059,-500.0,0.00026439,7]
[406247247,1771659032069,-500.0,0.00026476,7]
[406247249,1771659032078,-300.0,0.00026573,2]
[406247251,1771659032087,-300.0,0.00026574,2]
[406247253,1771659032097,-168.0,0.00026738,2]
[406247255,1771659032105,-180.59818789,0.00026804,2]
[406247257,1771659032114,-368.5345471,0.000271,7]
[406247259,1771659032126,-131.4654529,0.000271,7]
[406247261,1771659032136,-804.61113859,0.00027139,10]
[406247301,1771659038085,-801.13,0.00027139,10]
[406247303,1771659038097,-868.15134432,0.00027139,10]
[406247305,1771659038106,-549.0,0.00027139,10]
[406247307,1771659038115,-500.0,0.0002733,7]
[406247309,1771659038125,-168.0,0.00027627,2]
[406247311,1771659038134,-956.41,0.00027724,7]
[406247313,1771659038143,-500.0,0.00027941,2]
[406247315,1771659038152,-233.25082105,0.00027941,2]
[406247317,1771659038161,-500.0,0.00027941,2]
[406247319,1771659038171,-500.0,0.00027941,2]
[406247321,1771659038180,-500.0,0.00027941,2]
[406247323,1771659038189,-196.02188676,0.00027941,2]
[406247325,1771659038198,-500.0,0.00027941,2]
[406247327,1771659038207,-500.0,0.00027941,2]
[406247329,1771659038216,-406.7943305,0.00027941,2]
[406247330,1771659038225,-500.0,0.00027941,2]
[406247332,1771659038234,-500.0,0.00027941,2]
[406247334,1771659038243,-500.0,0.00027941,2]
[406247336,1771659038252,-443.01696648,0.00027941,2]
[406247338,1771659038261,-309.67450984,0.00027941,2]
[406247340,1771659038271,-346.19650194,0.00027941,2]
[406247342,1771659038280,-158.32500041,0.00027941,18]
[406247344,1771659038290,-173.45905737,0.00027942,2]
[406247346,1771659038299,-33095.5197751,0.00027942,2]
[406247348,1771659038308,-1909.582215,0.00027942,2]
[406247350,1771659038317,-866.88,0.0002797,10]
[406247352,1771659038326,-722.4,0.0002797,10]
[406247354,1771659038335,-602.0,0.0002797,10]
[406247356,1771659038344,-501.66,0.0002797,10]
[406247358,1771659038353,-345.76995542,0.00027979,2]
[406247360,1771659038362,-249.32,0.0002798,3]
[406247362,1771659038371,-373.98,0.0002798,3]
[406247364,1771659038380,-186.99,0.0002798,3]
[406247366,1771659038389,-560.99,0.0002798,3]
[406247368,1771659038398,-56151.5003405,0.0002798,2]
[406247370,1771659038408,-23041.32981161,0.0002799,2]
[406247550,1771659045632,-73684.23571699,0.0002799,2]
[406247551,1771659045644,-2680.87889995,0.0002799,2]
[406247554,1771659045981,-593.55557145,0.0002799,2]
[406247555,1771659045991,-503.0,0.0002799,10]
[406247556,1771659046000,-208.33,0.00028,7]
[406247557,1771659046009,-168.0,0.00028021,2]
[406247558,1771659046019,-2591.44346468,0.00028229,14]
[406247559,1771659046028,-168.0,0.00028264,2]
[406247560,1771659046038,-500.0,0.00028342,7]
[406247561,1771659046047,-500.0,0.00028352,7]
[406247562,1771659046057,-500.0,0.00028702,7]
[406247563,1771659046066,-500.0,0.00028742,7]
[406247564,1771659046076,-59.26895128,0.0002875,7]
[406247813,1771660232036,-566.01503087,0.00013426,5]
[406247840,1771660238213,-3411.82757894,0.00013426,5]
[406247842,1771660238222,-470.29712126,0.00013699,2]
[406247844,1771660238232,-505.9178781,0.00013699,2]
[406247847,1771660238241,-505.45800329,0.00013699,2]
[406247849,1771660238250,-501.07282437,0.00013699,2]
[406247851,1771660238259,-502.69412043,0.00013699,2]
[406247852,1771660238269,-234.38550422,0.00013699,2]
[406247855,1771660238279,-578.12054773,0.00013699,2]
[406247856,1771660238289,-506.2553816,0.00013699,2]
[406247858,1771660238297,-500.88185161,0.00013699,2]
[406247860,1771660238307,-500.0,0.00013699,2]
[406247863,1771660238316,-519.48799971,0.00013699,2]
[406247864,1771660238325,-215.0,0.00022824,3]
[406247866,1771660238335,-1526.26285015,0.00023007,2]
[406247869,1771660238345,-2902.52570043,0.00023903,2]
[406247870,1771660238354,-2962.36321554,0.00025081,2]
[406247873,1771660238363,-154.68461599,0.00025238,2]
[406247874,1771660238373,-1140.34140573,0.00025238,2]
[406247876,1771660238383,-3141.87576121,0.0002626,6]
[406247878,1771660238392,-168.0,0.00026692,2]
[406247881,1771660238402,-168.0,0.00026777,2]
[406247882,1771660238412,-500.0,0.00026855,7]
[406247884,1771660238423,-168.0,0.00026884,2]
[406247886,1771660238432,-500.0,0.00026923,7]
[406247888,1771660238442,-168.0,0.00027023,2]
[406247890,1771660238451,-507.0,0.00027061,10]
[406247892,1771660238461,-168.0,0.00027121,2]
[406247894,1771660238470,-743.87469872,0.00027132,2]
[406247896,1771660238480,-168.0,0.00027255,2]
[406247898,1771660238489,-168.0,0.00027314,2]
[406247900,1771660238498,-168.0,0.00027396,2]
[406247902,1771660238508,-3381.22582211,0.00027439,9]
[406247904,1771660238517,-168.0,0.00027468,2]
[406247906,1771660238526,-500.0,0.00027496,2]
[406247908,1771660238536,-421.02891026,0.00027496,2]
[406247910,1771660238545,-320.84974819,0.00027496,2]
[406247912,1771660238556,-500.0,0.00027496,2]
[406247914,1771660238565,-500.0,0.00027496,2]
[406247916,1771660238575,-500.0,0.00027496,2]
[406247918,1771660238584,-500.0,0.00027496,2]
[406247920,1771660238593,-500.0,0.00027496,2]
[406247922,1771660238603,-500.0,0.00027496,2]
[406247924,1771660238612,-500.0,0.00027496,2]
[406247926,1771660238622,-500.0,0.00027496,2]
[406247928,1771660238631,-500.0,0.00027496,2]
[406247930,1771660238646,-500.0,0.00027496,2]
[406247932,1771660238655,-500.0,0.00027496,2]
[406247934,1771660238665,-500.0,0.00027496,2]
[406247936,1771660238675,-500.0,0.00027496,2]
[406247938,1771660238684,-500.0,0.00027496,2]
[406247940,1771660238693,-500.0,0.00027496,2]
[406247942,1771660238703,-500.0,0.00027496,2]
[406247944,1771660238713,-500.0,0.00027496,2]
[406247946,1771660238727,-500.0,0.00027496,2]
[406247948,1771660238736,-500.0,0.00027496,2]
[406247950,1771660238745,-500.0,0.00027496,2]
[406247952,1771660238755,-500.0,0.00027496,2]
[406247954,1771660238764,-500.0,0.00027496,2]
[406247956,1771660238773,-500.0,0.00027496,2]
[406247958,1771660238783,-500.0,0.00027496,2]
[406247960,1771660238792,-500.0,0.00027496,2]
[406247962,1771660238802,-383.01942212,0.00027496,2]
[406247964,1771660238811,-500.0,0.00027496,2]
[406247966,1771660238821,-514.32431597,0.00027496,2]
[406247968,1771660238830,-221.81915528,0.00027496,2]
[406247970,1771660238839,-500.0,0.00027496,2]
[406247972,1771660238848,-500.0,0.00027496,2]
[406247974,1771660238858,-500.0,0.00027496,2]
[406247976,1771660238868,-500.0,0.00027496,2]
[406247978,1771660238878,-500.0,0.00027496,2]
[406247980,1771660238887,-500.0,0.00027496,2]
[406247982,1771660238897,-500.0,0.00027496,2]
[406247985,1771660238912,-500.0,0.00027496,2]
[406247987,1771660238921,-500.0,0.00027496,2]
[406247989,1771660238930,-500.0,0.00027496,2]
[406247991,1771660238939,-500.0,0.00027496,2]
[406247993,1771660238949,-457.30145639,0.00027496,2]